bitfinex/quotes_ETHUSD_20251224
["timestamp","ask_amount","ask_price","bid_price","bid_amount"]
[1766573685818,0.9387,2930.9,2929.9,6.82708174]
[1766573691440,0.9387,2930.9,2930.0,0.03412969]
[1766573693147,0.9387,2930.9,2930.1,6.8257056]
[1766573693355,0.9387,2930.9,2930.2,0.68598353]
[1766573693649,0.9387,2930.9,2930.0,3.41395273]
[1766573693650,0.9387,2930.8,2930.0,3.41395273]
[1766573694246,0.9387,2930.8,2930.1,0.02048586]
[1766573694453,0.9387,2930.8,2930.2,0.03412736]
[1766573694621,0.9387,2930.8,2930.1,0.05461438]
[1766573695554,0.9387,2930.8,2930.2,3.41273633]
[1766573697145,0.9387,2930.8,2930.1,3.4674156]
[1766573701429,0.954,2930.7,2930.1,3.4674156]
[1766573704129,0.954,2930.7,2930.1,6.8802684]
[1766573704329,0.954,2930.7,2930.1,6.84613988]
[1766573704530,0.954,2930.7,2930.2,0.03412736]
[1766573707160,0.954,2930.7,2930.2,3.44681581]
[1766573708054,0.954,2930.7,2930.2,0.03412736]
[1766573708256,0.954,2930.6,2930.2,0.03412736]
[1766573708458,0.954,2930.6,2930.1,0.02048586]
[1766573708666,0.954,2930.5,2930.0,0.001]
[1766573709230,0.954,2930.4,2929.9,0.001]
[1766573709565,0.954,2930.3,2929.9,0.001]
[1766573712267,0.954,2930.3,2929.7,0.001]
[1766573714572,0.954,2930.3,2929.9,0.002]
[1766573717970,0.954,2930.0,2929.3,0.02048586]
[1766573718184,0.954,2929.8,2929.1,3.4139636]
[1766573718350,0.954,2929.8,2929.0,7.74269167]
[1766573718556,0.954,2929.8,2929.2,0.02048586]
[1766573722055,4.30676246,2930.2,2929.4,0.02048586]
[1766573722056,0.954,2930.2,2929.4,0.02048586]
[1766573722258,0.954,2930.2,2929.5,0.03413551]
[1766573723171,0.954,2930.2,2929.4,0.91448586]
[1766573723668,0.954,2930.2,2929.5,0.03413551]
[1766573723880,0.954,2930.2,2929.6,0.02048586]
[1766573728200,0.954,2930.2,2929.6,3.43391283]
[1766573728408,0.954,2930.2,2929.7,0.03413318]
[1766573728789,0.954,2930.2,2929.6,0.05462021]
[1766573728961,1.39065208,2930.2,2929.6,0.05462021]
[1766573729862,0.954,2930.1,2929.6,0.05462021]
[1766573732197,0.001,2930.2,2929.8,0.02048586]
[1766573732499,0.001,2930.2,2929.6,6.88145777]
[1766573732500,0.001,2930.2,2929.9,0.05461671]
[1766573732701,0.001,2930.2,2929.9,0.02048586]
[1766573733219,0.001,2930.7,2930.5,0.02048586]
[1766573733503,0.001,2930.9,2930.7,0.02048586]
[1766573734700,0.001,2930.9,2930.8,0.03412037]
[1766573734910,0.001,2930.9,2930.7,0.02048586]
[1766573735287,0.001,2930.9,2930.8,3.41203766]
[1766573735497,0.001,2930.9,2930.7,0.02048586]
[1766573735674,0.001,2930.9,2930.7,3.43261307]
[1766573737517,0.001,2930.9,2930.7,4.2085493]
[1766573738327,0.9347,2931.4,2931.1,0.02048586]
[1766573739600,0.001,2931.4,2931.2,0.02048586]
[1766573739798,0.9337,2931.7,2931.3,0.03411455]
[1766573740011,0.9337,2931.7,2931.5,0.02048586]
[1766573740206,0.001,2931.9,2931.6,0.02048586]
[1766573740207,0.9347,2931.9,2931.6,0.02048586]
[1766573740608,0.9347,2931.9,2931.4,0.02048586]
[1766573740805,0.9347,2931.9,2931.6,0.02048586]
[1766573742182,0.9347,2931.9,2931.6,3.43158816]
[1766573742376,0.001,2931.9,2931.8,0.02048586]
[1766573742792,0.001,2932.1,2931.8,0.02048586]
[1766573743509,0.001,2932.1,2932.0,0.02048586]
[1766573749340,0.001,2932.1,2932.0,3.43112706]
[1766573749898,0.001,2932.1,2931.9,0.03410757]
[1766573750104,0.9347,2932.1,2931.6,3.41104884]
[1766573750623,0.9347,2932.1,2931.7,3.41096948]
[1766573751506,0.9347,2932.1,2931.5,6.82242819]
[1766573753637,0.9347,2932.1,2931.5,7.59397101]
[1766573755136,0.9347,2932.1,2931.5,4.18274809]
[1766573755333,0.9347,2932.1,2931.5,3.41120527]
[1766573755524,0.9347,2932.1,2931.5,6.82242819]
[1766573759634,0.9347,2932.1,2931.5,6.82442819]
[1766573761037,0.9347,2932.1,2931.6,0.02048586]
[1766573762435,0.9347,2932.1,2931.6,3.41105033]
[1766573762637,0.9347,2932.1,2931.6,3.41108238]
[1766573764139,0.9347,2932.1,2931.6,6.8426748]
[1766573764310,0.001,2932.1,2931.6,6.8426748]
[1766573764711,0.9513,2932.1,2931.6,6.8426748]
[1766573765244,0.9513,2932.1,2931.7,0.0341099]
[1766573765440,0.9513,2932.1,2931.6,6.8426748]
[1766573765824,0.9513,2932.1,2931.6,3.43156824]
[1766573766024,0.9513,2932.1,2931.6,6.8426748]
[1766573770027,0.9513,2932.1,2931.7,0.0341099]
[1766573770347,0.9513,2932.1,2931.6,3.41110592]
[1766573770646,0.9513,2932.1,2931.5,0.002]
[1766573770851,0.9503,2931.9,2931.5,0.002]
[1766573771434,0.9503,2931.9,2931.5,3.41315565]
[1766573771641,0.9503,2931.9,2931.5,0.002]
[1766573773846,0.001,2932.1,2930.7,0.02048586]
[1766573773847,0.9503,2931.7,2930.7,0.02048586]
[1766573774019,0.9503,2931.5,2930.8,3.41195358]
[1766573774220,4.30373528,2932.0,2930.8,3.41195358]
[1766573774221,0.9503,2931.3,2930.8,6.82399124]
[1766573775446,0.9503,2931.3,2930.8,3.41195358]
[1766573775647,0.9503,2931.3,2930.7,0.02048586]
[1766573775849,0.03411762,2931.2,2930.3,3.43506557]
[1766573776032,0.9503,2931.1,2930.4,3.41247537]
[1766573776232,0.9503,2930.9,2930.4,3.41247537]
[1766573776432,0.9503,2930.9,2930.3,3.41455842]
[1766573776629,0.9503,2930.7,2930.3,0.002]
[1766573776835,0.9503,2930.7,2930.3,3.4146156]
[1766573777357,0.9503,2930.7,2930.3,0.002]
[1766573778655,0.9503,2930.7,2930.3,3.4487244]
[1766573780658,0.9503,2930.7,2930.3,0.03612619]
[1766573781131,0.9503,2930.7,2930.3,3.44869609]
[1766573782662,0.9503,2930.7,2930.3,0.03612619]
[1766573783035,0.9503,2930.7,2930.3,0.002]
[1766573783236,0.9503,2930.7,2930.3,0.03612619]
[1766573783537,0.9503,2930.7,2930.3,0.002]
[1766573783858,0.9503,2930.7,2930.3,3.4145928]
[1766573784032,0.9503,2930.7,2930.4,0.03412503]
[1766573785864,0.9503,2930.7,2930.4,3.4466273]
[1766573786054,0.03411762,2930.9,2930.4,3.4466273]
[1766573786235,0.98441762,2930.9,2930.4,3.46711316]
[1766573786870,0.98441762,2930.9,2930.4,0.05461089]
[1766573787163,0.001,2930.7,2930.4,0.03412503]
[1766573787345,0.001,2930.7,2930.4,3.44662474]
[1766573791940,0.001,2930.7,2929.9,3.43355776]
[1766573791941,0.9806,2930.6,2929.4,0.02048586]
[1766573792139,0.9806,2930.4,2929.7,3.41325852]
[1766573792463,0.895,2930.7,2929.1,4.775]
[1766573792464,0.9806,2930.2,2929.1,0.895]
[1766573792652,0.9806,2930.0,2929.4,3.4136099]
[1766573792858,0.9806,2930.0,2929.5,4.09846897]
[1766573793066,0.9806,2930.2,2929.6,0.01708973]
[1766573793370,0.894,2930.3,2929.5,4.09846897]
[1766573793371,1.02326066,2930.1,2929.5,4.09846897]
[1766573793956,1.02326066,2930.1,2929.6,0.01708856]
[1766573794162,1.02326066,2930.1,2929.6,3.43051738]
[1766573799879,1.02326066,2930.1,2929.5,4.09840473]
[1766573800177,1.02326066,2930.1,2929.5,0.002]
[1766573800748,1.02326066,2930.1,2929.5,3.41551257]
[1766573801445,1.02326066,2930.1,2929.5,0.002]
[1766573802663,0.9415,2930.0,2929.5,0.002]
[1766573806258,0.9841592,2930.2,2929.5,0.002]
[1766573809085,0.9415,2930.1,2929.5,0.002]
[1766573809267,0.9415,2929.9,2929.5,0.002]
[1766573813354,0.98416066,2930.1,2929.5,0.002]
[1766573816493,0.04266066,2930.1,2929.5,0.002]
[1766573816693,0.0426592,2930.2,2929.5,0.002]
[1766573817106,1.51333131,2930.2,2929.5,0.002]
[1766573817468,2.40733131,2930.2,2929.5,0.002]
[1766573817668,2.40733131,2930.2,2929.5,0.01908798]
[1766573819196,2.40733131,2930.2,2929.5,3.43259114]
[1766573819197,0.9415,2930.1,2929.5,3.43259114]
[1766573819397,0.9415,2930.1,2929.5,3.41550316]
[1766573820569,0.9415,2930.1,2929.5,0.002]
[1766573822497,0.9415,2930.1,2929.5,3.41553566]
[1766573823162,1.5676956,2930.1,2929.5,0.002]
[1766573823367,0.04266211,2930.0,2929.5,0.002]
[1766573823569,1.02826066,2930.1,2929.5,3.41555145]
[1766573824085,0.04266066,2930.1,2929.5,0.002]
[1766573824368,0.04266066,2930.1,2929.5,3.41553486]
[1766573824579,0.04266066,2930.1,2929.5,0.002]
[1766573827208,1.02826066,2930.1,2929.5,0.002]
[1766573831801,1.02826066,2930.1,2929.5,0.70406578]
[1766573832037,1.92226066,2930.1,2929.5,0.70406578]
[1766573832481,0.9856,2930.0,2929.5,0.68697663]
[1766573832668,0.9856,2930.0,2929.5,0.002]
[1766573834172,0.9856,2929.8,2929.5,0.002]
[1766573835515,4.30687994,2930.1,2929.5,0.002]
[1766573835516,1.02826648,2929.7,2929.5,0.002]
[1766573835718,1.92226648,2929.7,2929.1,0.002]
[1766573835918,0.9856,2929.6,2929.1,0.002]
[1766573836116,0.9856,2929.6,2929.1,0.01910372]
[1766573836315,0.9856,2929.6,2929.1,3.43310356]
[1766573837322,0.9856,2929.6,2929.1,0.01910372]
[1766573837904,0.9856,2929.6,2929.2,0.01710138]
[1766573838110,0.9856,2929.5,2929.1,0.002]
[1766573838325,0.9856,2929.3,2929.1,0.002]
[1766573838620,0.9856,2929.3,2928.8,0.001]
[1766573839030,0.9856,2929.3,2928.8,3.41536251]
[1766573839627,0.9856,2929.3,2928.8,0.001]
[1766573840121,0.9856,2929.3,2928.8,0.01811071]
[1766573841629,0.9856,2929.3,2928.9,3.41425108]
[1766573841808,0.9856,2929.3,2929.0,0.01710837]
[1766573842502,1.56182878,2929.6,2929.0,0.01710837]
[1766573842830,1.8796,2929.6,2929.0,0.01710837]
[1766573843196,0.9856,2929.5,2929.0,0.01910837]
[1766573844332,0.9856,2929.5,2929.0,3.43314588]
[1766573845926,0.9856,2929.5,2929.0,0.01910837]
[1766573846628,0.9856,2929.5,2929.0,3.43323014]
[1766573847427,0.9856,2929.5,2929.0,0.01910837]
[1766573849299,1.02826939,2929.5,2929.0,0.002]
[1766573851042,1.02826939,2929.5,2929.0,3.41612017]
[1766573851341,0.9856,2929.5,2929.1,3.43105011]
[1766573852143,1.8172,2929.8,2929.1,7.55027095]
[1766573852312,1.8172,2929.8,2929.2,0.01709905]
[1766573853001,0.04266648,2929.7,2929.2,0.01709905]
[1766573853730,0.96586648,2929.7,2929.1,0.02048586]
[1766573854230,0.96586648,2929.7,2929.1,3.4344098]
[1766573854432,0.96586648,2929.7,2929.2,0.01710022]
[1766573857139,0.96686648,2929.7,2929.2,0.01710022]
[1766573859737,1.4942746,2929.7,2929.1,0.02048586]
[1766573860534,1.4942746,2929.7,2929.1,3.43449056]
[1766573860735,1.4942746,2929.7,2929.2,0.01710022]
[1766573861115,1.4942746,2929.7,2929.1,0.02048586]
[1766573861317,1.5161746,2929.7,2929.1,0.02048586]
[1766573861516,1.5161746,2929.7,2929.2,0.01710022]
[1766573862440,1.5161746,2929.7,2929.1,0.02048586]
[1766573862441,0.001,2929.7,2929.1,0.02048586]
[1766573862617,0.001,2929.7,2929.2,3.41388642]
[1766573862817,0.001,2929.7,2929.3,0.03758433]
[1766573864146,0.9461,2929.7,2929.3,0.02048586]
[1766573864442,0.9461,2929.7,2929.1,0.02048586]
[1766573864647,0.04266794,2929.6,2929.0,3.41608489]
[1766573864851,0.9451,2929.5,2929.0,0.002]
[1766573865717,0.98776939,2929.5,2929.0,0.002]
[1766573866019,0.9451,2929.5,2929.0,0.002]
[1766573871651,0.894,2929.6,2929.0,0.70768342]
[1766573871954,0.895,2929.7,2929.0,0.70768342]
[1766573872326,1.8401,2929.7,2929.0,0.70768342]
[1766573876137,1.8401,2929.7,2929.1,3.41401795]
[1766573878649,0.9461,2929.7,2929.1,3.41401795]
[1766573878857,0.9461,2929.7,2929.1,4.16760125]
[1766573883170,0.9461,2929.7,2929.1,3.41401795]
[1766573889971,0.9461,2929.7,2929.0,3.43655967]
[1766573890468,3.41431923,2929.7,2929.0,3.43655967]
[1766573890667,0.9261,2929.6,2929.0,3.43655967]
[1766573896182,0.9261,2929.6,2929.2,0.02048586]
[1766573899293,0.9261,2929.6,2929.0,3.43655511]
[1766573899986,0.9261,2929.6,2929.1,3.4139976]
[1766573900790,0.9261,2929.6,2929.0,3.43656393]
[1766573901973,0.9261,2929.6,2929.0,6.85069844]
[1766573902593,0.9261,2929.6,2929.1,0.01710313]
[1766573903990,0.9261,2929.6,2929.0,3.43656393]
[1766573904391,0.9261,2929.6,2929.0,0.02248586]
[1766573904616,0.43831376,2929.6,2929.0,0.02248586]
[1766573904812,0.9261,2929.5,2929.1,0.01710313]
[1766573910001,0.9261,2929.5,2929.1,3.43110872]
[1766573910613,0.9261,2929.5,2929.1,0.01710313]
[1766573912914,0.9261,2929.5,2929.1,3.43109515]
[1766573913224,0.001,2929.6,2929.2,0.02048586]
[1766573913425,0.001,2929.6,2929.3,0.01709963]
[1766573913784,0.001,2929.6,2929.2,0.02048586]
[1766573915507,0.001,2929.6,2929.2,3.43438689]
[1766573916000,0.001,2929.6,2929.2,0.02048586]
[1766573919620,0.001,2929.6,2929.2,3.43437083]
[1766573920684,0.001,2929.6,2929.3,0.01709963]
[1766573922126,0.9257,2929.6,2929.0,0.002]
[1766573922319,0.96836794,2929.6,2929.0,0.002]
[1766573922614,0.9257,2929.6,2929.1,3.43448851]
[1766573924128,0.9257,2929.6,2929.1,3.41400265]
[1766573924342,0.9257,2929.6,2929.0,3.41613451]
[1766573925121,0.96836794,2929.6,2929.0,3.41613451]
[1766573925914,0.9247,2929.5,2929.1,0.01710313]
[1766573926109,0.9247,2929.5,2929.0,0.01910313]
[1766573926510,0.9247,2929.5,2929.0,3.43322841]
[1766573927594,0.9247,2929.5,2929.0,0.01910313]
[1766573927805,0.9247,2929.5,2928.8,3.41534364]
[1766573928006,0.9247,2929.3,2928.8,3.41534364]
[1766573928296,0.9247,2929.3,2928.9,3.41424619]
[1766573928996,0.9247,2929.3,2928.8,3.41536765]
[1766573930801,0.9247,2929.3,2928.9,0.02048586]
[1766573931002,0.9247,2929.3,2929.0,3.41413451]
[1766573932930,0.9247,2929.3,2928.9,3.43467529]
[1766573933128,0.9247,2929.3,2929.0,0.002]
[1766573941237,0.9257,2929.3,2928.8,6.82973463]
[1766573941540,0.9257,2929.3,2928.3,0.002]
[1766573941541,0.9232,2928.9,2928.3,0.002]
[1766573941725,0.9232,2928.7,2928.3,0.002]
[1766573941930,0.9232,2928.7,2928.1,3.41512431]
[1766573942135,0.04268251,2928.6,2928.1,3.41512431]
[1766573942330,0.9232,2928.5,2928.1,3.41512431]
[1766573943645,0.9232,2928.5,2928.0,0.002]
[1766573944138,0.9232,2928.7,2928.1,0.02048586]
[1766573946745,0.9232,2928.7,2928.1,3.4355633]
[1766573951354,0.04268251,2928.6,2928.0,3.41725731]
[1766573951569,0.9232,2928.5,2928.0,3.41725731]
[1766573951847,0.04268251,2928.6,2928.0,0.002]
[1766573951848,0.9232,2928.3,2928.0,0.002]
[1766573952053,0.9232,2928.3,2927.9,0.002]
[1766573955264,0.9232,2928.3,2928.0,0.002]
[1766573956734,0.9232,2928.3,2927.9,0.002]
[1766573957953,0.96588688,2928.3,2927.9,0.002]
[1766573958268,0.96588688,2928.3,2927.8,0.002]
[1766573959030,0.96588688,2928.3,2927.7,3.41556299]
[1766573959354,0.96588688,2928.3,2927.7,6.8312135]
[1766573960259,0.9232,2928.3,2927.8,0.02048586]
[1766573961357,0.001,2928.7,2928.2,0.02048586]
[1766573961865,0.001,2928.7,2928.3,3.41495065]
[1766573962222,0.001,2928.7,2928.4,0.02048586]
[1766573962629,0.96688105,2928.7,2928.4,0.02048586]
[1766573963752,0.96688105,2928.7,2928.2,0.02048586]
[1766573964256,0.48180615,2928.7,2928.0,3.43767327]
[1766573964458,0.9232,2928.6,2928.0,3.43767327]
[1766573965365,0.9232,2928.6,2928.1,3.4151773]
[1766573966558,0.9232,2928.6,2928.2,0.02048586]
[1766573968157,0.9232,2928.6,2928.2,3.43555289]
[1766573971329,0.001,2928.7,2928.2,3.43555289]
[1766573971659,0.001,2928.7,2928.4,0.02048586]
[1766573972062,0.04267668,2929.0,2928.4,0.02048586]
[1766573972561,0.9387,2928.9,2928.4,0.02048586]
[1766573973965,0.9387,2928.9,2928.3,0.02048586]
[1766573974137,0.9387,2928.8,2928.3,0.02048586]
[1766573974334,0.9387,2928.8,2928.1,0.02048586]
[1766573974533,0.9387,2928.8,2928.4,0.02048586]
[1766573978869,0.04267668,2929.0,2928.4,3.4353197]
[1766573979059,1.00047376,2929.2,2928.6,0.02048586]
[1766573979247,0.9578,2929.1,2928.6,0.02048586]
[1766573979647,0.001,2928.8,2928.6,0.02048586]
[1766573980767,0.001,2928.8,2928.4,3.43529885]
[1766573980768,0.001,2928.8,2928.5,3.41471176]
[1766573980979,0.9578,2929.2,2928.7,0.02048586]
[1766573981140,1.00047522,2929.1,2928.7,0.02048586]
[1766573984268,0.9578,2929.0,2928.4,0.02048586]
[1766573986771,0.9578,2929.0,2928.4,3.43531294]
[1766573987766,0.9578,2929.0,2928.4,0.02048586]
[1766573988275,0.9588,2929.0,2928.4,0.02048586]
[1766573988576,0.9588,2929.0,2928.4,3.43526819]
[1766573988747,0.9588,2929.0,2928.4,0.79511625]
[1766573996473,0.9588,2929.0,2928.4,4.20995004]
[1766573997058,0.9588,2929.0,2928.4,0.79511625]
[1766574002181,0.9588,2929.0,2928.3,0.02248586]
[1766574002387,0.9588,2929.0,2928.5,0.02048586]
[1766574005775,0.9588,2929.0,2928.7,0.02048586]
[1766574005984,0.9602,2929.3,2928.9,0.02048586]
[1766574006188,0.9592,2929.2,2928.9,0.02048586]
[1766574006788,0.9592,2929.2,2928.8,0.02048586]
[1766574013011,0.9602,2929.2,2928.8,0.02048586]
[1766574015686,0.001,2929.3,2929.2,0.02048586]
[1766574015892,0.001,2929.6,2929.0,0.02048586]
[1766574016197,0.001,2929.6,2929.3,0.02048586]
[1766574016789,0.001,2929.6,2929.0,0.02048586]
[1766574016983,0.9602,2929.6,2929.2,0.02048586]
[1766574017510,0.001,2929.7,2929.4,0.02048586]
[1766574017993,0.9602,2929.9,2929.6,0.02048586]
[1766574018203,0.001,2930.0,2929.8,0.02048586]
[1766574019317,0.001,2930.0,2929.7,0.02048586]
[1766574019676,0.9592,2929.9,2928.8,0.02048586]
[1766574019872,0.9592,2929.9,2928.9,0.894]
[1766574021619,0.001,2930.0,2928.8,0.002]
[1766574021620,0.9592,2929.7,2928.8,0.002]
[1766574024206,0.9592,2929.7,2928.8,0.02248586]
[1766574030317,0.9592,2929.7,2928.9,58.851167]
[1766574030495,0.9592,2929.7,2929.0,3.42313354]
[1766574033629,0.9592,2929.7,2929.0,4.31713354]
[1766574036815,0.9592,2929.7,2929.0,4.3376194]
[1766574037025,0.9592,2929.7,2929.1,0.9602]
[1766574037316,0.001,2929.9,2929.1,0.9602]
[1766574037522,0.9507,2929.9,2929.2,0.52978194]
[1766574037898,0.9507,2929.9,2929.2,0.5502678]
[1766574038122,0.001,2929.9,2929.2,0.5502678]
[1766574038327,0.001,2930.3,2929.4,0.02048586]
[1766574038533,0.9507,2930.4,2929.5,5.38692936]
[1766574038891,0.9507,2930.4,2929.6,0.97118586]
[1766574039987,0.001,2930.4,2929.8,0.02048586]
[1766574040728,0.001,2930.4,2929.9,0.894]
[1766574041714,0.9497,2930.6,2929.9,0.894]
[1766574042018,0.001,2930.8,2930.0,0.02048586]
[1766574042262,0.001,2930.8,2930.2,0.02048586]
[1766574042432,0.001,2930.9,2930.3,0.894]
[1766574042737,0.001,2930.9,2930.3,1.788]
[1766574042935,0.001,2930.9,2930.4,0.18084859]
[1766574048653,0.001,2930.9,2930.5,0.9507]
[1766574051721,0.9507,2930.9,2930.4,0.18084859]
[1766574051922,0.001,2930.9,2930.3,0.894]
[1766574052436,0.9507,2930.9,2930.3,0.894]
[1766574059153,0.9497,2930.7,2929.7,0.894]
[1766574059359,0.9497,2930.7,2929.8,0.91448586]
[1766574059546,0.9497,2930.7,2929.9,0.18084859]
[1766574060555,0.001,2930.9,2930.0,0.02048586]
[1766574060756,0.001,2930.9,2930.1,0.894]
[1766574060948,0.9507,2930.9,2930.0,0.95545758]
[1766574061150,0.9497,2930.7,2930.1,0.894]
[1766574061364,0.9497,2930.7,2930.2,0.18494576]
[1766574062258,0.98,2930.5,2929.6,0.02048586]
[1766574062458,0.98,2930.5,2929.7,0.9497]
[1766574062763,0.98,2930.5,2929.8,0.02048586]
[1766574062963,0.98,2930.7,2929.8,0.02048586]
[1766574063461,0.98,2930.7,2929.9,0.002]
[1766574064253,0.98,2930.7,2929.9,0.45302049]
[1766574071373,0.98,2930.7,2930.0,4.487719]
[1766574078176,0.981,2930.7,2930.0,4.487719]
[1766574078565,0.001,2930.7,2930.0,4.487719]
[1766574079375,0.001,2930.7,2929.9,0.45302049]
[1766574079376,0.981,2930.9,2930.3,4.487719]
[1766574079566,0.001,2930.9,2930.4,0.4487719]
[1766574087690,0.001,2930.9,2930.6,4.487719]
[1766574088186,0.001,2931.1,2930.6,4.487719]
[1766574088561,0.981,2931.6,2931.0,4.487719]
[1766574092159,0.001,2931.6,2931.0,4.487719]
[1766574094595,1.8822,2931.9,2931.1,0.45082049]
[1766574095160,1.8822,2931.9,2931.1,0.47130635]
[1766574096198,0.891,2931.9,2931.1,0.47130635]
[1766574096398,0.9794,2931.8,2931.1,0.45082049]
[1766574096697,0.9794,2931.8,2930.9,0.02048586]
[1766574101326,0.9804,2931.8,2930.9,0.02048586]
[1766574106414,0.9804,2931.8,2931.1,4.50820486]
[1766574107317,0.9804,2931.8,2931.1,0.02048586]
[1766574113293,0.001,2931.8,2931.1,0.02048586]
[1766574113493,0.001,2931.8,2931.2,0.45082049]
[1766574114319,0.001,2931.9,2931.3,4.50820486]
[1766574116232,0.001,2931.8,2931.3,4.50820486]
[1766574117140,0.001,2931.8,2931.3,0.02048586]
[1766574119930,0.001,2932.1,2931.5,4.50820486]
[1766574120113,0.9804,2932.1,2931.6,0.45082049]
[1766574120835,0.04263301,2932.0,2931.2,0.9794]
[1766574121008,0.04263301,2932.0,2930.4,0.4507719]
[1766574121009,0.89,2931.9,2931.1,4.487719]
[1766574121334,0.954,2931.8,2931.1,4.487719]
[1766574121730,0.954,2931.8,2930.9,6.38360486]
[1766574122036,0.954,2931.6,2930.9,0.02248586]
[1766574122236,0.954,2931.6,2930.9,0.56485493]
[1766574124110,0.954,2931.6,2930.9,0.02248586]
[1766574124310,0.954,2931.6,2931.0,0.002]
[1766574136540,0.955,2931.8,2931.0,0.002]
[1766574136741,1.844,2931.8,2931.1,0.02048586]
[1766574138634,0.001,2931.8,2931.3,0.02048586]
[1766574138841,0.001,2931.8,2931.3,0.47299591]
[1766574139768,0.001,2931.6,2931.3,0.02048586]
[1766574139970,0.001,2931.6,2931.1,0.02048586]
[1766574140857,0.001,2931.6,2931.0,0.002]
[1766574141155,0.955,2931.6,2931.0,0.002]
[1766574145972,0.04264028,2931.5,2931.0,0.002]
[1766574146146,0.954,2931.4,2931.0,0.002]
[1766574147350,0.001,2931.6,2931.0,0.002]
[1766574149750,0.001,2931.6,2931.1,0.02048586]
[1766574149955,0.001,2931.6,2931.1,0.47134732]
[1766574152692,0.001,2931.8,2931.1,0.47134732]
[1766574153285,0.9075,2931.8,2931.1,0.47134732]
[1766574155106,0.001,2932.1,2931.6,0.02048586]
[1766574155268,0.9075,2932.8,2932.4,0.02048586]
[1766574155463,0.9075,2932.8,2932.5,0.48456205]
[1766574155682,0.9075,2932.8,2932.4,0.02048586]
[1766574156203,0.9065,2933.1,2932.6,0.50504791]
[1766574156370,1.7935,2933.1,2932.6,0.50504791]
[1766574158672,0.887,2933.1,2932.6,0.50504791]
[1766574158872,0.9537,2933.0,2932.6,0.50504791]
[1766574161811,1.8397,2933.0,2932.6,0.50504791]
[1766574162311,0.9537,2933.0,2932.7,0.05458413]
[1766574162487,1.8397,2933.0,2932.7,0.05458413]
[1766574162687,1.8397,2933.0,2932.7,0.02048586]
[1766574163995,0.04260395,2934.0,2932.7,0.02048586]
[1766574164190,1.5757,2933.2,2932.7,0.02048586]
[1766574164385,1.5757,2933.2,2932.8,0.201]
[1766574164817,0.9527,2933.1,2932.8,0.201]
[1766574165183,0.623,2933.2,2932.9,0.02048586]
[1766574165388,0.9527,2933.2,2932.9,0.02048586]
[1766574165589,0.9527,2933.2,2932.9,0.0545818]
[1766574165590,0.886,2933.1,2932.9,0.0545818]
[1766574165790,0.9527,2933.2,2932.9,0.22148586]
[1766574166120,0.9527,2933.2,2932.9,0.201]
[1766574168023,0.002,2933.1,2932.9,0.201]
[1766574168320,0.41680625,2933.2,2933.0,0.02048586]
[1766574168517,0.36903982,2933.2,2933.0,0.02048586]
[1766574168820,0.36903982,2933.2,2932.9,0.201]
[1766574169121,0.9527,2933.5,2933.0,0.02048586]
[1766574169417,0.04261266,2933.4,2933.0,0.02048586]
[1766574169597,0.04261121,2933.5,2933.0,0.02048586]
[1766574169797,0.99531121,2933.5,2933.0,0.02048586]
[1766574173019,0.001,2934.2,2933.0,0.02048586]
[1766574173020,0.001,2934.2,2933.2,0.02386553]
[1766574173193,0.9527,2934.0,2933.3,0.03409129]
[1766574173525,0.9527,2933.9,2933.3,0.03409129]
[1766574173824,0.9527,2933.9,2933.4,0.02386553]
[1766574175435,0.002,2933.5,2933.3,0.13644542]
[1766574176124,0.9547,2933.5,2933.3,0.13644542]
[1766574176327,0.9547,2933.5,2932.8,0.02048586]
[1766574176521,1.13867,2933.5,2932.8,0.02048586]
[1766574176728,1.13867,2933.5,2932.8,0.13646078]
[1766574177505,1.13867,2933.5,2932.5,0.001]
[1766574177701,1.13867,2933.5,2932.6,0.13646916]
[1766574177901,1.13867,2933.5,2932.5,0.001]
[1766574178117,0.9527,2933.3,2932.5,0.001]
[1766574178316,0.9527,2933.1,2932.5,0.001]
[1766574180934,0.9527,2933.1,2931.5,4.48412875]
[1766574181228,0.9527,2933.1,2932.0,0.9527]
[1766574181534,0.9527,2933.1,2931.1,5.84747607]
[1766574181714,0.944,2932.9,2931.6,1.02375975]
[1766574182031,0.944,2932.7,2931.6,1.02375975]
[1766574182214,0.944,2932.7,2931.7,0.0341099]
[1766574182806,1.829,2932.6,2931.6,1.02375975]
[1766574183538,1.829,2932.6,2932.5,0.001]
[1766574183752,1.829,2932.6,2931.6,1.02375975]
[1766574186047,1.829,2932.6,2931.8,4.4813095]
[1766574186243,1.829,2932.6,2931.9,0.44813095]
[1766574186945,1.829,2932.6,2932.0,1.02367591]
[1766574187456,0.944,2932.6,2931.9,0.44813095]
[1766574187645,0.944,2932.6,2931.9,1.47182433]
[1766574190846,0.944,2932.6,2931.9,0.44813095]
[1766574192253,0.944,2932.6,2931.9,0.44913095]
[1766574192852,0.944,2932.6,2931.9,0.001]
[1766574193033,0.944,2932.5,2931.9,0.001]
[1766574195039,0.944,2932.5,2931.5,1.02375975]
[1766574195250,0.944,2932.2,2930.9,0.002]
[1766574195414,4.4813095,2932.3,2930.9,0.002]
[1766574195415,0.944,2932.0,2930.9,0.002]
[1766574195619,0.944,2932.0,2931.0,1.02575975]
[1766574195848,0.944,2932.0,2931.0,0.002]
[1766574198546,0.944,2932.0,2931.0,0.03611804]
[1766574201066,0.944,2932.0,2931.0,0.002]
[1766574201261,0.944,2932.0,2931.1,0.44853095]
[1766574202547,0.944,2932.0,2931.2,0.03411572]
[1766574205136,0.944,2932.0,2931.2,4.51542522]
[1766574205355,0.944,2932.0,2931.2,4.4813095]
[1766574205560,0.944,2932.0,2931.2,5.50523348]
[1766574205737,0.885,2932.2,2931.5,4.4813095]
[1766574205943,0.944,2932.2,2931.6,0.03411106]